Cogmind - Beta 15 @@@ ROGUE MODE // 2025.09.10 @ 19:18:04 Player: the Result: Destroyed by YI-UF0 with YI-UF0's Doublenader Performance ------------- Evolutions (0) 0 Regions Visited (2) 400 Robots Destroyed (37) 185 Value Destroyed (617) 617 Prototype IDs (2) 40 Alien Tech Used (0) 0 Bonus (0) 0 TOTAL SCORE: 1242 Bonus ------- None Cogmind --------- Core Integrity 0/250 Matter 268/300 Energy 237/240 System Corruption 0% Temperature Cool (0) Movement Walking (190) Ox1 Location -10/Mines Parts ------- > --- POWER (1) -------- Nuclear Core > --- PROPULSION (2) --- Carbon-fiber Leg Carbon-fiber Leg > --- UTILITY (2) ------ Large Storage Unit Advanced Targeting Computer > --- WEAPON (2) ------- Assault Rifle Assault Cannon > --- INVENTORY (15) --- Aluminum Leg Aluminum Leg Aluminum Leg Improved Heat Sink Medium Armor Plating Medium Armor Plating Medium Armor Plating Improved Trap Extractor (0/6) Recalibrator Assault Rifle Assault Rifle Grenade Launcher Datajack Mining Laser Plasma Cutter Peak State ------------ > --- POWER ------------ Nuclear Core > --- PROPULSION ------- Carbon-fiber Leg Carbon-fiber Leg > --- UTILITY ---------- Large Storage Unit Advanced Targeting Computer > --- WEAPON ----------- Assault Rifle Assault Cannon > --- INVENTORY -------- Aluminum Leg Aluminum Leg Aluminum Leg Improved Heat Sink Medium Armor Plating Medium Armor Plating Medium Armor Plating Improved Trap Extractor Recalibrator Assault Rifle Assault Rifle Grenade Launcher Datajack Mining Laser Plasma Cutter [Rating: 19] Favorites ----------- Power Light Ion Engine Engine Light Ion Engine Power Core Nuclear Core Propulsion Aluminum Leg Leg Aluminum Leg Utility Medium Armor Plating Device Seismic Detector Storage Large Storage Unit Processor Advanced Targeting Computer Protection Medium Armor Plating Weapon Assault Rifle Ballistic Gun Assault Rifle Ballistic Cannon Light Cannon Launcher Grenade Launcher Special Weapon Mining Laser Special Melee Weapon Datajack Build | -11 -10 -10 ------- Run | Yrd Mat Min Slots Evolved . | . . . Power . | . . . Propulsion . | . . . Utility . | . . . Weapon . | . . . Parts Attached 30 | 8 15 7 Power 4 | 1 2 1 Engine 3 | 1 2 . Core 1 | . . 1 Reactor . | . . . Propulsion 9 | 2 3 4 Treads . | . . . Leg 9 | 2 3 4 Wheel . | . . . Hover . | . . . Flight . | . . . Utility 7 | 2 4 1 Device 2 | 1 1 . Storage 3 | 1 2 . Processor 1 | . . 1 Hackware . | . . . Protection 1 | . 1 . Artifact . | . . . Weapon 10 | 3 6 1 Energy Gun . | . . . Energy Cannon . | . . . Ballistic Gun 5 | 3 2 . Ballistic Cannon 2 | . 1 1 Launcher 1 | . 1 . Special Weapon 1 | . 1 . Impact Weapon . | . . . Slashing Weapon . | . . . Piercing Weapon . | . . . Special Melee Weapon 1 | . 1 . Unidentified Prototypes . | . . . Parts Lost 1 | . 1 . Power . | . . . Propulsion . | . . . Utility . | . . . Weapon 1 | . 1 . Highest Loss Streak 1 | . 1 . To Critical Strikes 1 | . 1 . Average Backups 10 | 2 11 14 Power . | . . . Propulsion 2 | . 2 3 Utility 3 | . 3 5 Weapon 3 | . 3 4 Tool/Special . | . . . Unused Backups 17 | . 3 14 Power . | . . . Propulsion 5 | . 2 3 Utility 8 | . 1 7 Weapon 3 | . . 3 Tool/Special 1 | . . 1 Average Slot Usage (%) 99 | . 99 100 Engine 13 | . 14 8 Leg 28 | . 28 28 Device 5 | . 5 . Storage 14 | . 14 14 Protection 8 | . 8 9 Ballistic Gun 24 | . 24 22 Ballistic Cannon 2 | . 2 5 Peak Build Rating 19 | 7 10 19 Average Rating 8 | 4 8 13 On Entrance 5 | . 7 10 Naked Turns . | . . . Heaviest Build 41 | 13 35 41 Greatest Support 30 | 20 20 30 Greatest Overweight (x) 1 | 1 1 1 Average Overweight (x) . | . . 1 Largest Inventory Capacity 15 | 8 15 15 Average Capacity 12 | 6 12 15 Most Carried 15 | 8 15 15 Average Carried 10 | 2 11 14 Final Capacity 15 | 8 15 15 Final Carried 15 | 5 15 15 Class Distribution -------------------- 86% | Mutant 13% | Scavenger-Mutant Dominant Class ---------------- Mutant | -10/Materials Mutant | -10/Mines Resources | -11 -10 -10 ----------- Run | Yrd Mat Min Matter Collected 1238 | 329 792 117 Remotely . | . . . Salvage Created 1137 | 288 720 129 Parts 71 | 33 33 5 Haulers Intercepted 2 | . 2 . Recyclers Shooed 4 | 1 2 1 Parts Field Recycled . | . . . Retrieved Matter . | . . . Parts Self-Destructed . | . . . Prevented . | . . . Kills | -11 -10 -10 ------- Run | Yrd Mat Min Combat Hostiles Destroyed 16 | . 14 2 Guns 12 | . 10 2 Cannons 1 | . 1 . AOE 3 | . 3 . Classes Destroyed 11 | 3 8 . Worker 1 | 1 . . Builder 1 | . 1 . Tunneler 10 | 9 . 1 Hauler 2 | . 2 . Recycler 3 | 1 2 . Mechanic 1 | . 1 . Operator 1 | . 1 . Watcher 2 | . 2 . Swarmer 6 | . 6 . Grunt 9 | . 7 2 Subdweller 1 | . 1 . Best Kill Streak 6 | 6 3 2 Combat Bots Only 3 | . 3 2 Max Kills in Single Turn 2 | 2 2 1 Gunslinging 1 | . 1 . Exploded 1 | . 1 . Melee . | . . . Uniques/NPCs Destroyed . | . . . Combat | -11 -10 -10 -------- Run | Yrd Mat Min Hostile Shots Fired 95 | . 82 13 Missed 31 | . 28 3 Hits 64 | . 54 10 Projectile 64 | . 54 10 AOE 3 | . . 3 Critical Strikes 2 | . 2 . Damage Taken 826 | . 610 216 Core 251 | . 110 141 Absorbed by Shields . | . . . Core Remaining (%) 100 | 100 . . Volleys Fired 126 | 23 91 12 Largest 2 | 2 2 2 Hottest 100 | 40 100 40 Shots Fired 221 | 46 154 21 Gun 190 | 46 126 18 Cannon 23 | . 20 3 Launcher 4 | . 4 . Special 4 | . 4 . Kinetic 213 | 46 146 21 Thermal 4 | . 4 . Explosive 4 | . 4 . Electromagnetic . | . . . Robot Hit Streak 13 | 6 13 4 Robot Miss Streak 5 | 3 5 2 Penetration Max . | . . . Secondary Targets 3 | . 3 . Max Gunslinging Chain 1 | . 1 . Shots Hit Robots 121 | 26 82 13 Core Hits 54 | 12 35 7 Critical Kills . | . . . Critical Parts Destroyed . | . . . Critical Strikes 1 | . 1 . Blast 1 | . 1 . Melee Attacks . | . . . Impact . | . . . Slashing . | . . . Piercing . | . . . Sneak Attacks . | . . . Combat Hostiles . | . . . Follow-up Attacks . | . . . Damage Inflicted 1722 | 338 1205 179 Guns 1458 | 338 969 151 Cannons 175 | . 147 28 Explosions 89 | . 89 . Melee . | . . . Ramming . | . . . Kinetic 1633 | 338 1116 179 Thermal . | . . . Explosive 89 | . 89 . Electromagnetic . | . . . Impact . | . . . Slashing . | . . . Piercing . | . . . Highest Corruption . | . . . Average Corruption . | . . . Corruption Purged . | . . . Corruption Blocked . | . . . Overload Shots . | . . . Overflow Damage 14 | . 14 . Projectiles 14 | . 14 . Explosions . | . . . Melee . | . . . Knockbacks 2 | . 2 . Impact . | . . . Kinetic 2 | . 2 . Secondary . | . . . Self-Inflicted Damage 26 | . 26 . Shots 1 | . 1 . Rammed . | . . . Targets Rammed . | . . . Kicked . | . . . Crushed . | . . . Highest Temperature 40 | . 40 21 Average Temperature 11 | . 11 12 Received Heat Transfer 297 | . 243 54 Siege Activations . | . . . Martial Activations . | . . . Shielding Activations . | . . . Robots Disrupted . | . . . Combat Hostiles . | . . . Robots Corrupted . | . . . Combat Hostiles . | . . . Parts Fried . | . . . Impact Corruptions . | . . . Robots Melted . | . . . Combat Hostiles . | . . . Parts Melted . | . . . Heat Transferred . | . . . Parts Sabotaged . | . . . Parts Stolen . | . . . Parts Stripped . | . . . Power Chain Reactions . | . . . Alert | -11 -10 -10 ------- Run | Yrd Mat Min Maximum Alert Level . | . . . Low Security (%) 100 | 100 100 100 Level 1 . | . . . Level 2 . | . . . Level 3 . | . . . Level 4 . | . . . Level 5 . | . . . High Security . | . . . Max Security . | . . . Peak Influence 103 | 25 103 62 Initial 12 | . 9 12 Average 23 | 3 26 13 Influence Increases 547 | 55 437 55 Destroy 0b10 Robot/C 300 | . 260 40 Destroy 0b10 Robot/NC 105 | 55 45 5 Destroy Leader 78 | . 68 10 Successful Hack 26 | . 26 . Destroy Structure 23 | . 23 . Lose Combat Pursuer 15 | . 15 . Influence Decreases 547 | 40 420 87 Entered New Map 26 | . 6 20 Time Decay 521 | 40 414 67 Squads Dispatched 1 | . 1 . Investigation . | . . . Extermination . | . . . Reinforcement 1 | . 1 . Assault . | . . . Garrison . | . . . Intercept . | . . . Searches Triggered . | . . . Construction Impeded . | . . . Haulers Reinforced . | . . . Active Scanning Responses . | . . . Cargo Convoy Interrupts . | . . . Stealth | -11 -10 -10 --------- Run | Yrd Mat Min Distress Signals 1 | . 1 . Communications Jammed . | . . . Distress Signals . | . . . Times Spotted 22 | . 19 3 Peak Tracking Total 4 | . 4 2 Tactical Retreats 1 | . 1 . Traps | -11 -10 -10 ------- Run | Yrd Mat Min Traps Triggered . | . . . Indirectly . | . . . Trap Hack Attempts 72 | . 72 . Triggered 1 | . 1 . Disarmed . | . . . Reprogrammed 6 | . 6 . Reused . | . . . Traps Extracted . | . . . Installed . | . . . Triggered . | . . . Objects Rigged 1 | . 1 . Machines | -11 -10 -10 ---------- Run | Yrd Mat Min Machines Disabled . | . . . Max in Single Turn . | . . . Machines Repaired . | . . . Machines Dismantled . | . . . Machines Sabotaged . | . . . Overloaded Fab Kills . | . . . Hacking | -11 -10 -10 --------- Run | Yrd Mat Min Machines Accessed 12 | . 11 1 Terminals 8 | . 8 . Fabricators . | . . . Repair Stations 1 | . 1 . Recycling Units 2 | . 2 . Scanalyzers . | . . . Garrison Access . | . . . Total Hacks 38 | . 37 1 Successful 20 | . 19 1 Failed 18 | . 18 . Catastrophic 3 | . 3 . Database Lockouts . | . . . Manual 26 | . 26 . Terminals 32 | . 32 . Fabricators . | . . . Repair Stations 2 | . 2 . Recycling Units 3 | . 3 . Scanalyzers . | . . . Garrison Access . | . . . Terminal Hacks 9 | . 8 1 Part Schematic 1 | . 1 . Prototype ID Bank 1 | . 1 . Open Door 1 | . . 1 Terminal Index 1 | . 1 . Locate Traps 3 | . 3 . Dispatch Records 1 | . 1 . Registered Components 1 | . 1 . Fabricator Hacks . | . . . Repair Station Hacks . | . . . Recycling Unit Hacks . | . . . Scanalyzer . | . . . Garrison Access Hacks . | . . . Unauthorized Hacks 11 | . 11 . Terminals 8 | . 8 . Track 2 | . 2 . Botnet 4 | . 4 . Detonate 1 | . 1 . Operators 1 | . 1 . Fabricators . | . . . Repair Stations . | . . . Recycling Units 3 | . 3 . Reject 2 | . 2 . Mask 1 | . 1 . Scanalyzers . | . . . Garrison Access . | . . . Data Cores Recovered . | . . . Used . | . . . Hacking Detections 11 | . 11 . Full Trace Events . | . . . Feedback Events . | . . . Feedback Blocked . | . . . Robot Schematics Acquired . | . . . Robots Built . | . . . Authchips . | . . . Time . | . . . Total Robot Build Rating . | . . . Part Schematics Acquired 1 | . 1 . Parts Built . | . . . Authchips . | . . . Time . | . . . Total Part Build Rating . | . . . Parts Repaired . | . . . Time . | . . . Parts Recycled . | . . . Recycled Matter . | . . . Retrieved Matter . | . . . Retrieved Components . | . . . Parts Scanalyzed . | . . . Part Schematics Acquired . | . . . Parts Damaged . | . . . Bothacking | -11 -10 -10 ------------ Run | Yrd Mat Min Used RIF Installer . | . . . Robots Hacked . | . . . Non-combat . | . . . Combat . | . . . Robot Hacks Applied . | . . . Relay Couplers Released . | . . . Fabnet Peak Effective % . | . . . Robots Rewired . | . . . Allies Hacked . | . . . Hacks Repelled . | . . . Allies | -11 -10 -10 -------- Run | Yrd Mat Min Total Allies . | . . . Largest Group . | . . . Highest-Rated Group . | . . . Highest-Rated Ally . | . . . Total Orders . | . . . Ally Attacks . | . . . Total Damage . | . . . Kills . | . . . Allies Corrupted . | . . . Allies Melted . | . . . Intel | -11 -10 -10 ------- Run | Yrd Mat Min Active Infowar (turns) 1056 | 2 1054 . Seismic 1056 | 2 1054 . Robot Analysis Total . | . . . Derelict Logs Recovered . | . . . Drone Launches . | . . . Drone Recoveries . | . . . Exploration | -11 -10 -10 ------------- Run | Yrd Mat Min Turns Passed 3175 | 230 2640 305 Spaces Moved 1542 | 93 1355 94 Core 36 | 36 . . Treads . | . . . Legs 1506 | 57 1355 94 Wheels . | . . . Hover . | . . . Flight . | . . . Fastest Speed 50 | 50 120 190 Average Speed 155 | 108 156 190 Slowest Speed 190 | 120 190 190 Overloaded Moves . | . . . Propulsion Burnouts . | . . . Robots Hopped . | . . . Potential Cave-ins . | . . . Cave-ins Triggered . | . . . Exploration Rate (%) 41 | 4 98 22 Regions Visited 2 Branch Regions 1 Pre-discovered Areas . | . . . Known Exits Taken . | . . . Unknown Exits Taken 2 | 1 1 . Scrap Searched . | . . . Spaces Dug 2 | . 2 . Terrain Destroyed 27 | . 27 . Melee . | . . . Projectile 3 | . 3 . AOE 24 | . 24 . Terrain Rammed . | . . . Walls Destroyed . | . . . Machines Disabled . | . . . Actions | -11 -10 -10 --------- Run | Yrd Mat Min Total 2097 | 174 1717 206 Wait 260 | 40 143 77 Move 1540 | 92 1354 94 Hop . | . . . Pick Up 30 | 8 18 4 Fast Attach 10 | 7 2 1 Attach 3 | 1 2 . Detach 3 | . 2 1 Swap 24 | . 17 7 Drop 29 | 3 16 10 Fire 126 | 23 91 12 Melee . | . . . Ram . | . . . Kick . | . . . Crush . | . . . Escape Stasis . | . . . Rewire . | . . . Trap 72 | . 72 . Miscellaneous . | . . . Route ------- -11/Scrapyard -10/Materials (discovered 5 exits: [*Mat x3] / *Min / [*Sub]) -10/Mines (discovered 2 exits: [*Mat x2]) History --------- Turn | Location | Event 7 | -11/Scrapyard | Discovered new exit (range 15) 231 | -11/Scrapyard | Entered Materials 307 | -10/Materials | Build established: Mutant 745 | -10/Materials | Discovered new exit (range 16) 820 | -10/Materials | Discovered new exit (range 9) 915 | -10/Materials | Build established: Scavenger-Mutant 931 | -10/Materials | Derelicts attacked the area 1021 | -10/Materials | Discovered new exit (range 16) 1197 | -10/Materials | Discovered new exit (range 10) 1301 | -10/Materials | Discovered new exit (range 3) 1352 | -10/Materials | Build established: Mutant 2871 | -10/Materials | Entered Mines 2876 | -10/Mines | Core integrity fell below 50% 2977 | -10/Mines | Discovered new exit (range 7) 2992 | -10/Mines | Discovered new exit (range 11) 2995 | -10/Mines | Met a Derelict who couldn't figure out how to use a Trap Extractor 3175 | -10/Mines | Core integrity fell below 20% 3176 | -10/Mines | Destroyed by YI-UF0 with YI-UF0's Doublenader Last Messages --------------- 03153_ K-01 Serf collects debris. 03154_ U-05 Engineer builds a Wall. 03155_ K-01 Serf collects debris. 03156_ U-05 Engineer lays Concrete. 03156_ K-01 Serf collects debris. 03157_ U-05 Engineer lays Concrete. 03157_ K-01 Serf collects debris. 03158_ U-05 Engineer lays Concrete. 03158_ K-01 Serf collects debris. 03159_ U-05 Engineer lays Concrete. 03162_ K-01 Serf collects debris. 03162_ U-05 Engineer lays Concrete. 03165_ U-05 Engineer builds a Wall. 03166_ K-01 Serf collects debris. 03168_ K-01 Serf destroyed. 03169_ U-05 Engineer lays Concrete. 03170_ T-07 Excavator destroyed. 03170_ U-05 Engineer lays Concrete. 03174_ YI-UF0 mumbles something. 03174_ U-05 Engineer builds a Wall. Map ----- +----------------------------------------------------+ | | | | | | | | | | | ?????????????????######??????????????????????????? | | ????????????????##" ""###????????????????????????? | | ????????????????#" = = #????????????????????????? | | ????????????????#"= [ ##????????????????????????? | | ????????????????## [ ##?????????????????????????? | | ?????????###????### ###?????????????????????????? | | ????????## #### X #?????????????????????????? | | ????????# ##????????????????????????? | | ???????# ##???#######?????????????? | | ??????# ### ##??# #?????????????? | | ?????# ?# < #??# =%#?????????????? | | ????# < #???## ##??# #?????????????? | | ????# ??????## ######???#= #?????????????? | | ????#????????# # ###???????# #?????????????? | | ????# ###### ##???????# #?????????????? | | ????# ##??????# #?????????????? | | ???# #??????# #?????????????? | | ???# ##########% ###????### ###?????????????? | | ??? ??????????## # # ####??# #???????????????? | | ???????????????# # #??# #???????????????? | | ???????????????# @ #### #???????????????? | | ???????????????# # ## #???????????????? | | ???????????????## #u ## #???????????????? | | ????????????????## ## ##???????????????? | | ???????????????# % * !%* ### #????????????????? | | ???????????????# # #????????????????? | | ???????????????## #????????????????? | | ????????????????## ## ###????????????????? | | ?????????????????# # #??????????????????? | | ???????????????? # # #??????????????????? | | ???????????????# ??????????????????? | | ???????????????# ##??????????????????? | | ??????????????? g #???????????????????? | | ??????????????? =%= ???????????????????? | | ???????????????# = ????????????????????? | | ?????????????? ????????????????????? | | ?????????????? ## ##????????????????????? | | ??????????????? ?# #?????????????????????? | | ??????????????????# #??????????????????????? | | ??????????????????? ???????????????????????? | | ?????????????????????? ???????????????????????? | | ???????????????????????? ???????????????????????? | | ?????????????????????????????????????????????????? | | ?????????????????????????????????????????????????? | | ?????????????????????????????????????????????????? | +----------------------------------------------------+ Best States ------------- Heat Dissipation 25 Energy Generation 14 Energy Capacity 240 Matter Stores 300 Matter Capacity 300 Sight Range 16 Terrain Scan Density 10 Armor Coverage 225 Evasion (%) 55 Targeting Accuracy 8 Item Schematics ----------------- Hcp. Storage Unit | -10/Materials | Hacked Robot Schematics ------------------ None Fabricated ------------ Nothing Repaired ---------- Nothing Alien Tech Used ----------------- None Achievements -------------- None Challenges ------------ None Game ------ Seed ShadePlexusMapper Manual? 0 Play Time 00:22:43 Cumulative 314.9 hours Start 2025.09.10 @ 18:54:56 End 2025.09.10 @ 19:18:04 Sessions 1 Manual Loads 0 Difficulty Rogue Special Mode None Game No. 218 Rogue 218 Adventurer 0 Explorer 0 Win Type - Total 3 Types 3/0/0/0/0/0/0/0/0/0 Lore% 75 Gallery% 75 Achievement% 63 Wizard Run 0 Options --------- Layout 1 ASCII 0 Keyboard 0 Movement Mouse Keybinds 0 Fullscreen 1 Font 32/SmallcapsGlow Map View 50x35 Zoom Use 0% Tactical HUD 1 Map Filters NONE Filters NONE Steam 1 RUN: 0a00f964-8ace-43d2-8ba7-89582542424c